bitfinex/quotes_ETHUSD_20241106
["timestamp","ask_amount","ask_price","bid_price","bid_amount"]
[1730925007523,1.94683175,2676.5,2675.7,0.7945]
[1730925007733,0.7522,2676.5,2675.7,0.7945]
[1730925008038,1.94564485,2676.0,2675.7,0.7945]
[1730925008330,2.14020934,2675.9,2675.7,0.7945]
[1730925008533,0.7522,2676.5,2675.2,0.58429457]
[1730925008534,1.94564485,2675.8,2675.3,0.8204]
[1730925008743,1.94564485,2675.7,2675.3,0.8204]
[1730925009037,2.14020934,2675.7,2675.3,0.8204]
[1730925009195,1.94564485,2675.6,2675.3,0.8204]
[1730925009396,1.94564485,2675.5,2675.3,0.8204]
[1730925009904,1.94564485,2675.6,2675.3,0.8204]
[1730925010107,1.94564485,2675.5,2675.3,0.8204]
[1730925012396,1.94564485,2675.5,2675.2,0.58429457]
[1730925012397,1.94563069,2675.5,2675.2,0.58429457]
[1730925012599,1.94563069,2675.4,2675.2,0.58429457]
[1730925012928,1.94563069,2675.5,2675.2,0.58429457]
[1730925013513,1.94563069,2675.6,2675.2,0.58429457]
[1730925013916,1.94563069,2675.7,2675.3,0.7754]
[1730925014116,1.94563069,2675.9,2675.3,0.7754]
[1730925014355,1.94563069,2676.0,2675.3,0.7754]
[1730925014562,2.33475683,2676.3,2675.3,0.7754]
[1730925014563,1.94563069,2676.1,2675.3,0.7754]
[1730925015356,1.94563069,2676.0,2675.3,1.21136946]
[1730925015730,1.94563069,2676.0,2675.3,0.7754]
[1730925015971,1.94563069,2675.5,2675.3,0.7754]
[1730925016553,1.94563069,2675.6,2675.3,0.7754]
[1730925017067,1.94533106,2675.6,2675.3,0.7754]
[1730925017424,3.82920227,2675.8,2675.3,0.7754]
[1730925017425,3.44013606,2675.8,2675.3,0.7754]
[1730925017631,1.494805,2675.8,2675.3,0.7754]
[1730925018041,1.94533106,2676.1,2675.3,0.7754]
[1730925018249,1.94533106,2676.2,2675.4,0.7569]
[1730925018766,1.494536,2676.3,2675.4,0.7569]
[1730925018767,3.43986706,2676.3,2675.4,0.7569]
[1730925019268,1.94533106,2676.2,2675.5,0.8156]
[1730925019568,2.28931777,2676.2,2675.5,0.8156]
[1730925020075,1.94533106,2676.2,2675.5,0.8156]
[1730925020771,1.94533106,2676.1,2675.5,0.8156]
[1730925021263,1.94533106,2675.9,2675.5,0.8156]
[1730925021655,2.33439727,2676.2,2675.5,0.8156]
[1730925021656,1.94490777,2676.0,2675.5,0.8156]
[1730925021884,1.94490777,2676.1,2675.5,0.8156]
[1730925022567,3.82842532,2676.3,2675.5,0.8156]
[1730925022768,1.494536,2676.3,2675.5,0.8156]
[1730925024978,1.87737853,2676.3,2675.5,0.8156]
[1730925025130,2.33388932,2676.2,2675.5,0.8156]
[1730925025332,2.33388932,2676.1,2675.5,0.8156]
[1730925025530,4.6002494,2676.3,2675.5,0.8156]
[1730925025531,2.33388932,2676.2,2675.5,0.8156]
[1730925026144,4.21126785,2676.3,2675.5,0.8156]
[1730925026358,2.33677452,2676.2,2675.5,0.8156]
[1730925026531,2.33677452,2676.1,2675.5,0.8156]
[1730925027672,2.33677452,2676.0,2675.5,0.8156]
[1730925027834,2.33677452,2675.9,2675.5,0.8156]
[1730925028029,2.33677452,2675.8,2675.5,0.8156]
[1730925028246,2.33677452,2675.9,2675.5,0.8156]
[1730925028443,2.33677452,2675.8,2675.5,0.8156]
[1730925028675,5.09774591,2676.3,2675.5,0.8156]
[1730925028676,2.33677452,2676.0,2675.5,0.8156]
[1730925028873,2.33677452,2676.1,2675.5,0.8156]
[1730925029058,2.33677452,2676.2,2675.7,0.7695]
[1730925029269,2.33677452,2676.2,2675.9,0.7695]
[1730925029856,2.33677452,2676.4,2676.0,0.7575]
[1730925030057,2.72623694,2676.7,2676.1,1.13325]
[1730925030058,2.33677452,2676.6,2676.1,1.13325]
[1730925030284,2.33677452,2676.6,2675.7,0.7575]
[1730925030493,2.33677452,2676.6,2676.0,0.55]
[1730925030790,0.7695,2676.7,2676.1,0.7575]
[1730925030992,0.7695,2676.7,2676.2,0.55]
[1730925031301,0.7695,2676.7,2676.0,0.55]
[1730925031302,3.09757334,2676.9,2676.3,0.7575]
[1730925031456,3.09757334,2676.9,2676.5,0.7858]
[1730925031653,2.34007334,2677.1,2676.6,0.55]
[1730925031850,3.83383634,2677.3,2676.7,0.7858]
[1730925032055,2.34007334,2677.2,2676.7,0.7858]
[1730925032557,3.83383634,2677.3,2676.7,0.7858]
[1730925033596,1.493763,2677.3,2676.7,0.7858]
[1730925034307,1.493763,2677.3,2676.9,0.75]
[1730925034787,2.33670303,2678.0,2677.2,0.55]
[1730925035099,2.33670303,2678.4,2677.4,0.75]
[1730925035388,0.50628566,2678.4,2677.6,0.75]
[1730925035602,2.33445976,2678.7,2677.6,0.75]
[1730925035805,2.33445976,2678.8,2677.7,0.55]
[1730925035957,0.50579962,2678.8,2678.0,0.75]
[1730925036295,0.50579962,2678.8,2678.1,0.55]
[1730925036296,1.492996,2678.8,2678.1,0.55]
[1730925037581,1.492996,2678.8,2678.3,0.55]
[1730925038157,4.17606963,2679.8,2678.5,0.55]
[1730925038360,1.492738,2679.4,2678.6,0.8262]
[1730925039793,0.7778,2679.3,2678.6,0.8262]
[1730925040498,5.66880763,2679.4,2678.6,0.8262]
[1730925042766,4.17606963,2679.0,2678.3,0.806]
[1730925042971,0.41760696,2678.9,2678.3,0.806]
[1730925044196,5.66880763,2679.4,2678.3,0.806]
[1730925044857,4.17606963,2679.0,2677.9,0.7906]
[1730925047271,4.17606963,2678.6,2677.9,0.7906]
[1730925047510,0.41760696,2678.5,2677.9,0.7906]
[1730925047886,4.17606963,2679.0,2677.9,0.7906]
[1730925052417,4.17606963,2679.0,2678.0,0.55]
[1730925052613,0.74919598,2679.3,2678.1,0.7628]
[1730925052817,5.66880763,2679.4,2678.1,0.7628]
[1730925052978,1.492738,2679.4,2678.4,0.7628]
[1730925053191,1.492738,2679.4,2678.0,0.55]
[1730925053192,1.492738,2679.4,2678.6,0.7628]
[1730925053933,1.492738,2679.4,2678.8,0.7628]
[1730925056037,5.66880763,2679.4,2678.8,0.7628]
[1730925056262,0.56688076,2679.3,2678.8,0.7628]
[1730925056536,4.17606963,2679.0,2677.6,0.7908]
[1730925058099,4.17606963,2679.0,2677.7,0.55]
[1730925058298,0.41760696,2678.9,2678.0,0.8331]
[1730925060026,0.41760696,2678.9,2678.2,0.8331]
[1730925060336,0.56688076,2679.3,2678.2,0.8331]
[1730925060726,0.56688076,2679.3,2678.4,3.8331]
[1730925060915,0.56688076,2679.3,2678.4,0.8331]
[1730925061846,4.17606963,2679.0,2678.4,0.8331]
[1730925062023,0.41760696,2678.9,2678.4,0.8331]
[1730925062229,0.56688076,2679.3,2678.4,0.8331]
[1730925062412,5.66880763,2679.4,2678.4,0.8331]
[1730925066654,3.0,2679.3,2678.4,0.8331]
[1730925066982,4.17606963,2679.0,2678.4,0.8331]
[1730925070972,4.17606963,2679.0,2677.1,4.17606963]
[1730925070973,1.492738,2679.4,2678.5,1.0393297]
[1730925071267,4.17606963,2680.2,2678.7,0.55]
[1730925071421,4.17606963,2680.2,2679.0,0.7892]
[1730925071623,1.492547,2679.9,2679.0,0.7892]
[1730925075077,4.17606963,2679.8,2679.0,0.7892]
[1730925075281,0.56686166,2679.7,2679.0,0.7892]
[1730925078405,4.17606963,2679.4,2679.0,0.7892]
[1730925079619,4.17606963,2679.4,2678.0,0.7797]
[1730925079907,4.17606963,2679.4,2677.3,4.51284589]
[1730925079908,6.50622441,2679.4,2678.3,0.55]
[1730925080095,6.50622441,2679.4,2678.4,0.7797]
[1730925080296,0.7892,2679.5,2678.4,0.7797]
[1730925080297,4.17606963,2679.0,2678.4,0.7797]
[1730925080503,4.17606963,2678.6,2678.4,0.7797]
[1730925084397,6.50622441,2678.6,2678.4,0.7797]
[1730925084814,2.33015478,2678.8,2678.4,0.7797]
[1730925085043,2.33015478,2678.7,2678.4,0.7797]
[1730925086215,2.33015478,2678.6,2678.4,0.7797]
[1730925088543,2.33015478,2678.5,2678.4,0.7797]
[1730925088841,2.83502165,2678.5,2678.4,0.7797]
[1730925089025,2.33015478,2678.5,2678.4,0.7797]
[1730925089604,2.71851391,2678.7,2678.4,0.7797]
[1730925090537,2.72652268,2678.7,2678.4,0.7797]
[1730925092410,2.72647629,2678.7,2678.4,0.7797]
[1730925092611,2.33686137,2678.5,2678.4,0.7797]
[1730925092852,7.40887969,2678.5,2677.5,0.7976]
[1730925093149,2.33721733,2678.0,2677.5,0.7976]
[1730925093964,2.72675355,2678.2,2677.5,0.7976]
[1730925093965,4.17606963,2677.7,2677.5,0.7976]
[1730925094139,4.17606963,2677.7,2676.7,0.5835092]
[1730925094140,2.33721733,2677.6,2677.2,0.7976]
[1730925094339,2.98854603,2677.6,2677.2,0.7976]
[1730925095212,6.51328696,2677.7,2677.2,0.7976]
[1730925095719,6.51185101,2677.7,2677.2,0.7976]
[1730925095925,2.33578138,2677.6,2677.2,0.7976]
[1730925096241,6.51185101,2677.7,2677.2,0.7976]
[1730925097176,2.33578138,2677.6,2677.2,0.7976]
[1730925097478,0.6511851,2677.6,2677.2,0.7976]
[1730925097975,2.98696648,2677.6,2677.2,0.7976]
[1730925098585,0.6511851,2677.6,2677.2,0.7976]
[1730925099364,6.51185101,2677.7,2677.2,0.7976]
[1730925100451,4.17606963,2677.7,2677.2,0.7976]
[1730925100657,6.50922524,2677.7,2677.2,0.7976]
[1730925101482,4.17606963,2677.7,2677.2,0.7976]
[1730925102393,6.5089516,2677.7,2677.2,0.7976]
[1730925102570,0.65089516,2677.6,2677.2,0.7976]
[1730925102880,4.17606963,2677.3,2676.8,0.7907]
[1730925106674,4.17606963,2677.7,2676.8,0.86541184]
[1730925107048,4.17606963,2677.7,2676.8,0.7907]
[1730925107296,3.58525415,2677.7,2677.0,0.828]
[1730925109096,0.74785033,2678.2,2677.0,0.828]
[1730925109325,3.58525415,2677.1,2676.7,1.3591092]
[1730925109532,3.58525415,2676.8,2676.7,1.3591092]
[1730925109836,3.58525415,2676.8,2676.7,0.5835092]
[1730925110141,3.58525415,2676.8,2674.6,0.01]
[1730925110295,3.58525415,2675.8,2674.7,0.52466304]
[1730925110493,3.58525415,2675.8,2675.1,0.5]
[1730925111333,4.17789377,2675.9,2675.1,0.5]
[1730925111528,4.17789377,2675.9,2675.1,3.0]
[1730925111729,4.17789377,2675.9,2675.1,3.52466304]
[1730925111933,4.17789377,2676.3,2675.2,0.52466304]
[1730925112221,4.17789377,2675.9,2675.1,3.0]
[1730925112530,4.17789377,2675.9,2674.8,0.52466304]
[1730925112728,0.41778938,2675.8,2674.8,0.52466304]
[1730925112930,0.41778938,2675.8,2675.1,0.769]
[1730925113655,0.41778938,2675.8,2675.1,3.769]
[1730925114757,0.41778938,2675.8,2675.1,4.29366304]
[1730925114947,0.06499141,2676.3,2675.2,0.769]
[1730925114948,4.24288518,2676.3,2675.2,0.769]
[1730925115150,4.24288518,2676.3,2675.4,0.55]
[1730925115466,4.17789377,2676.7,2675.7,0.769]
[1730925117060,4.17789377,2676.3,2675.7,0.769]
[1730925119334,4.17789377,2676.3,2675.4,0.7966]
[1730925119658,4.59568315,2676.3,2675.4,0.7966]
[1730925121454,4.17789377,2675.9,2675.4,0.7966]
[1730925122143,4.17789377,2675.9,2675.1,0.7578]
[1730925122344,0.7856,2676.0,2675.1,0.7578]
[1730925122345,4.17789377,2675.5,2675.1,0.7578]
[1730925122542,0.41778938,2675.4,2675.1,0.7578]
[1730925124566,1.21328938,2675.4,2674.8,0.7724]
[1730925124777,4.17789377,2675.1,2674.8,0.7724]
[1730925124930,4.17789377,2675.1,2674.5,0.7724]
[1730925125974,4.17789377,2675.1,2674.5,0.84717333]
[1730925126268,4.17789377,2675.1,2675.0,5.7932]
[1730925126841,4.17789377,2675.1,2675.0,5.0]
[1730925127037,0.41778938,2675.1,2675.0,5.0]
[1730925127237,5.67296677,2675.5,2675.0,5.0]
[1730925128276,4.17789377,2675.1,2675.0,5.0]
[1730925130576,4.67789377,2675.1,2675.0,5.0]
[1730925131489,5.93288315,2675.1,2675.0,5.0]
[1730925132179,5.14568315,2675.1,2675.0,5.0]
[1730925132541,4.67789377,2675.1,2675.0,5.0]
[1730925133084,4.67789377,2675.1,2675.0,4.5]
[1730925133085,4.17789377,2675.1,2675.0,4.5]
[1730925136990,4.17789377,2675.1,2673.8,0.7851]
[1730925136991,4.94419377,2675.1,2673.8,0.7851]
[1730925137188,4.17789377,2674.1,2673.8,0.7851]
[1730925137409,4.17789377,2674.5,2673.8,0.7851]
[1730925137714,4.17789377,2674.9,2674.0,0.7851]
[1730925137916,4.17789377,2674.9,2673.9,0.62711174]
[1730925137917,4.17789377,2674.9,2674.2,0.7851]
[1730925138209,4.17789377,2674.9,2673.7,0.01]
[1730925138210,4.17789377,2674.5,2673.7,0.7851]
[1730925138503,4.59568315,2674.5,2673.8,0.85988925]
[1730925138704,4.17789377,2674.5,2673.8,0.85988925]
[1730925138863,4.17789377,2674.5,2673.8,0.7851]
[1730925139692,4.17789377,2674.1,2673.9,3.0]
[1730925140059,4.17789377,2674.1,2673.8,0.7851]
[1730925140266,4.17789377,2674.5,2673.8,0.7851]
[1730925141511,4.59568315,2674.5,2673.8,0.7851]
[1730925143289,0.41778938,2674.5,2673.8,0.7851]
[1730925143506,4.17789377,2675.0,2673.8,0.7851]
[1730925145402,4.17789377,2674.6,2673.8,0.7851]
[1730925147656,3.59409748,2674.7,2673.8,0.7851]
[1730925148325,3.59409748,2674.4,2673.8,0.7851]
[1730925148524,0.35940975,2674.3,2673.8,0.7851]
[1730925148819,3.59409748,2674.1,2673.8,0.7851]
[1730925149400,0.35940975,2674.3,2673.8,0.7851]
[1730925149730,4.18281562,2674.5,2673.8,0.7851]
[1730925149943,4.98331562,2674.9,2673.8,0.7851]
[1730925150351,4.18281562,2675.2,2674.2,0.7914]
[1730925150635,2.324673,2675.5,2674.6,0.7914]
[1730925150636,1.495073,2675.5,2674.6,0.7914]
[1730925150942,1.495073,2675.5,2674.5,0.55]
[1730925151143,1.495073,2675.5,2674.8,0.7914]
[1730925151827,4.18281562,2675.2,2674.8,0.7914]
[1730925152800,1.495073,2675.5,2674.8,0.7914]
[1730925153080,2.06286186,2675.5,2674.8,0.7914]
[1730925153785,4.18281562,2675.2,2674.8,0.7914]
[1730925154092,4.18281562,2675.2,2674.5,0.7571]
[1730925154248,0.795,2675.3,2674.5,0.7571]
[1730925154249,4.18281562,2674.8,2674.5,0.7571]
[1730925166957,2.73104186,2675.1,2674.6,0.55]
[1730925167160,2.73104186,2675.1,2674.8,0.55]
[1730925167836,2.73104186,2675.1,2674.7,0.7593]
[1730925169411,4.18281562,2675.2,2674.7,0.7593]
[1730925169636,4.67815718,2675.2,2674.7,0.7593]
[1730925170354,1.495073,2675.5,2674.8,0.55]
[1730925170711,1.495073,2675.5,2674.9,0.84216581]
[1730925170910,3.86295477,2675.6,2675.1,0.7674]
[1730925171107,3.86295477,2675.6,2675.2,0.55]
[1730925172023,3.86295477,2675.6,2675.3,0.0747462]
[1730925172412,4.24925025,2675.6,2674.6,0.01]
[1730925172613,4.24925025,2675.6,2674.2,0.02]
[1730925172842,4.24925025,2675.6,2674.4,0.01]
[1730925173152,4.24925025,2675.6,2675.0,3.0]
[1730925173324,4.01391436,2675.5,2674.3,0.55]
[1730925173653,4.01391436,2675.5,2674.3,0.49753315]
[1730925173806,4.01391436,2675.5,2674.4,0.55]
[1730925174006,4.01391436,2675.5,2674.6,0.55]
[1730925174248,0.78768691,2675.4,2674.7,0.7674]
[1730925174545,0.42492503,2675.5,2674.7,3.0]
[1730925174711,3.86295477,2675.6,2674.8,0.7674]
[1730925175447,3.86295477,2675.6,2675.5,3.55]
[1730925175653,3.86295477,2675.6,2675.5,1.3174]
[1730925177107,3.86295477,2675.6,2675.5,0.55]
[1730925177312,3.86295477,2675.6,2675.0,0.7674]
[1730925177956,3.86295477,2675.6,2675.3,3.0]
[1730925178108,3.86295477,2675.6,2675.4,0.7674]
[1730925178314,3.86295477,2675.6,2675.4,0.84214908]
[1730925178553,3.86295477,2675.6,2675.4,0.7674]
[1730925179477,2.72449806,2676.3,2675.4,0.7674]
[1730925179628,0.27244981,2676.2,2675.4,0.7674]
[1730925181030,0.7504,2676.1,2675.4,0.7674]
[1730925181231,2.72407171,2676.0,2674.8,0.7674]
[1730925182168,2.72407171,2676.0,2674.9,0.7674]
[1730925182376,2.72407171,2676.2,2675.2,0.7674]
[1730925182535,3.39329985,2676.2,2675.3,0.55]
[1730925182735,3.39329985,2676.2,2675.4,0.7674]
[1730925183270,3.39329985,2676.2,2675.5,0.07474381]
[1730925183271,0.66922814,2676.2,2675.5,0.07474381]
[1730925183680,0.66922814,2676.2,2675.4,0.7674]
[1730925185975,0.66922814,2676.2,2675.1,0.7853]
[1730925185976,4.17563491,2675.8,2675.1,0.7853]
[1730925186291,0.41756349,2675.7,2675.1,0.7853]
[1730925187069,3.13972553,2675.7,2675.1,0.7853]
[1730925187882,3.51796204,2676.1,2675.1,0.7853]
[1730925188067,2.72216204,2676.0,2675.1,0.7853]
[1730925188243,3.51796204,2676.1,2675.1,0.7853]
[1730925188938,2.72216204,2676.0,2675.1,0.7853]
[1730925189182,0.3517962,2675.9,2675.1,0.7853]
[1730925189550,4.52743111,2675.9,2675.1,0.7853]
[1730925189751,7.2506448,2675.9,2675.1,0.7853]
[1730925190365,2.72321369,2675.8,2675.1,0.7853]
[1730925190683,4.52743111,2675.9,2674.6,1.34]
[1730925190684,2.72321369,2675.7,2674.6,1.34]
[1730925190838,2.99553506,2675.6,2674.6,1.34]
[1730925191579,2.72321369,2675.5,2674.6,1.34]
[1730925191938,7.6790486,2675.5,2674.6,1.34]
[1730925192140,2.72321369,2675.4,2674.6,0.79]
[1730925192376,0.76790486,2675.3,2674.6,0.79]
[1730925193464,3.49111855,2675.3,2674.6,0.79]
[1730925193666,0.76790486,2675.3,2674.6,0.79]
[1730925194082,3.22058117,2675.8,2674.8,0.8245]
[1730925194293,3.22058117,2675.8,2674.9,0.07476101]
[1730925194449,4.52743111,2675.9,2675.0,0.7924]
[1730925194450,7.74801228,2675.9,2675.0,0.7924]
[1730925194790,4.52743111,2675.9,2675.0,0.7924]
[1730925194946,0.85372123,2675.8,2675.0,0.7924]
[1730925195649,4.17563491,2675.5,2675.0,0.7924]
[1730925197366,7.39621608,2675.5,2675.0,0.7924]
[1730925198588,7.39965019,2675.5,2675.0,0.7924]
[1730925198790,3.22401528,2675.6,2675.0,0.7924]
[1730925198988,3.63178893,2675.6,2675.0,0.7924]
[1730925199155,3.22401528,2675.5,2675.0,0.7924]
[1730925199993,3.63178893,2675.6,2675.0,0.7924]
[1730925200351,3.22401528,2675.5,2675.0,0.7924]
[1730925201274,3.63178893,2675.6,2675.0,0.7924]
[1730925201481,4.5388138,2675.5,2675.0,0.7924]
[1730925203021,4.17563491,2675.1,2674.7,0.7753]
[1730925203317,4.17563491,2675.1,2674.0,0.58462]
[1730925203318,3.59371442,2674.8,2674.1,0.7753]
[1730925203910,3.59371442,2674.8,2674.4,3.0]
[1730925203911,4.36901442,2674.8,2674.4,3.0]
[1730925204212,4.36901442,2674.8,2674.2,0.07477764]
[1730925204413,4.36901442,2674.8,2674.4,3.0]
[1730925204709,4.36901442,2674.8,2674.2,0.07477764]
[1730925204907,4.36901442,2674.8,2674.5,3.0]
[1730925205312,0.7753,2674.8,2674.5,3.0]
[1730925205514,0.7753,2674.8,2674.2,0.19651975]
[1730925206013,0.7753,2674.8,2674.5,3.0]
[1730925206190,0.7753,2674.8,2674.2,0.55]
[1730925207608,0.7753,2674.8,2674.2,0.79404198]
[1730925209813,0.7753,2674.8,2674.3,0.07477767]
[1730925210185,0.7753,2674.8,2674.2,0.79404198]
[1730925211113,4.18103511,2674.7,2674.1,3.7753]
[1730925211317,4.18103511,2674.7,2674.1,0.7753]
[1730925211677,4.18103511,2674.7,2674.0,0.58462]
[1730925211678,4.18103511,2674.3,2674.0,0.58462]
[1730925215669,0.7524,2674.2,2673.5,0.005]
[1730925215853,4.18103511,2673.6,2673.5,0.005]
[1730925216035,1.24911351,2674.2,2673.5,0.005]
[1730925216036,4.18103511,2673.9,2673.5,0.005]
[1730925217270,4.18103511,2673.6,2673.5,0.005]
[1730925217847,0.8002,2673.7,2673.5,0.005]
[1730925218768,1.29832351,2673.7,2673.5,0.005]
[1730925219747,0.8123,2674.0,2673.5,0.005]
[1730925219970,0.49671351,2674.2,2673.5,0.8237]
[1730925220759,4.99333511,2674.6,2673.6,0.55]
[1730925220958,4.99333511,2674.6,2673.7,0.07479087]
[1730925221299,4.99333511,2674.6,2673.6,0.55]
[1730925222667,4.99333511,2674.6,2673.7,0.84079086]
[1730925222992,4.18103511,2674.2,2673.7,0.766]
[1730925223768,4.99333511,2674.6,2673.8,0.07479812]
[1730925224097,4.75789862,2674.6,2673.7,0.576]
[1730925225367,3.59477568,2674.4,2673.7,0.576]
[1730925228939,0.7753,2674.8,2673.9,0.55]
[1730925229108,0.7753,2674.8,2673.8,3.0]
[1730925229109,0.7753,2674.8,2674.2,0.7861]
[1730925229308,0.7753,2674.8,2674.2,0.97650445]
[1730925229980,0.7753,2674.8,2674.2,1.05128328]
[1730925230209,0.7753,2674.8,2674.3,3.8318]
[1730925230433,0.7753,2674.8,2674.6,0.55]
[1730925230716,0.7753,2674.8,2674.7,1.3818]
[1730925231140,3.59477568,2675.5,2674.7,3.8318]
[1730925231446,0.35947757,2675.4,2674.7,3.8318]
[1730925231581,0.35947757,2675.4,2674.7,0.8318]
[1730925232593,3.59477568,2675.2,2674.7,0.8318]
[1730925233115,3.59477568,2675.2,2673.9,1.3379]
[1730925233480,3.59477568,2675.2,2674.3,3.0]
[1730925233681,3.59477568,2675.2,2674.1,0.55]
[1730925234276,3.59477568,2675.2,2674.3,3.7753]
[1730925234523,3.59477568,2675.5,2674.4,1.38387705]
[1730925234817,3.59477568,2675.5,2674.4,1.3091]
[1730925235331,3.59477568,2675.5,2674.5,0.07477117]
[1730925235496,3.59477568,2675.5,2674.4,1.3091]
[1730925236417,3.59477568,2675.5,2674.5,0.07477114]
[1730925236607,0.43798757,2675.4,2674.5,0.07477114]
[1730925236921,0.43798757,2675.4,2674.4,1.3091]
[1730925237225,0.43798757,2675.4,2674.5,0.07477112]
[1730925237589,0.43798757,2675.4,2674.4,1.3091]
[1730925239299,3.59477568,2675.2,2674.4,0.7591]
[1730925239501,0.8053,2675.1,2674.4,0.7591]
[1730925240427,0.8053,2675.1,2673.8,0.49316648]
[1730925240428,3.59477568,2674.9,2673.9,0.7551]
[1730925240628,0.8034,2674.8,2673.9,0.7551]
[1730925240835,0.43981757,2674.7,2673.9,0.7551]
[1730925241207,3.59477568,2674.6,2673.9,0.7551]
[1730925241612,3.59477568,2674.1,2673.9,0.7551]
[1730925242206,4.34987568,2674.1,2673.9,0.7551]
[1730925242773,0.7551,2674.1,2673.9,0.7551]
[1730925242931,3.59477568,2674.4,2673.9,0.7551]
[1730925243118,0.7551,2674.3,2674.0,0.07478826]
[1730925243320,3.59477568,2674.4,2673.9,3.7551]
[1730925243517,5.09016068,2674.4,2673.9,4.13061]
[1730925244340,5.09016068,2674.4,2673.9,1.13061]
[1730925244542,5.09016068,2674.4,2673.9,0.7551]
[1730925244841,5.09016068,2674.4,2673.9,3.7551]
[1730925245444,5.09016068,2674.4,2673.9,0.7551]
[1730925246002,5.09016068,2674.4,2673.9,3.7551]
[1730925246417,5.09016068,2674.4,2673.9,0.7551]
[1730925246627,5.09016068,2674.4,2673.9,3.7551]
[1730925246827,5.09016068,2674.4,2673.9,0.7551]
[1730925247038,5.09016068,2674.4,2673.9,3.7551]
[1730925247645,5.09016068,2674.4,2673.9,0.7551]
[1730925247954,5.09016068,2674.4,2674.0,0.07478497]
[1730925248355,5.09016068,2674.4,2673.9,3.7551]
[1730925248653,5.09016068,2674.4,2673.9,0.7551]
[1730925249054,5.09016068,2674.4,2673.9,3.7551]
[1730925249416,5.09016068,2674.4,2673.9,0.7551]
[1730925249617,3.59477568,2674.1,2673.9,3.7551]
[1730925249818,3.59477568,2674.1,2673.9,0.7551]
[1730925250232,3.95425325,2674.1,2673.9,0.7551]
[1730925251232,3.59477568,2674.1,2673.9,0.7551]
[1730925252064,5.09016068,2674.4,2673.9,0.7551]
[1730925253829,1.495385,2674.4,2673.9,0.7551]
[1730925254055,3.59477568,2674.1,2673.9,0.7551]
[1730925255564,3.95425325,2674.1,2673.5,0.005]
[1730925255872,3.59477568,2673.6,2673.5,0.005]
[1730925266854,3.59477568,2673.9,2673.5,0.005]
[1730925267391,1.16327757,2674.1,2673.5,0.005]
[1730925267392,3.59477568,2673.6,2673.5,0.005]
[1730925269177,3.95425325,2673.6,2673.5,0.005]
[1730925276877,4.77285325,2673.6,2673.5,0.005]
[1730925280610,8.38511042,2673.6,2673.5,0.005]
[1730925281110,5.16102125,2673.6,2673.5,0.005]
[1730925281702,8.38631653,2673.6,2673.5,0.005]
[1730925282596,5.16102125,2673.6,2673.5,0.005]
[1730925283269,8.38609245,2673.6,2673.5,0.005]
[1730925283478,5.16102125,2673.6,2673.5,0.005]
[1730925283671,3.98294368,2673.6,2673.5,0.005]
[1730925286310,3.59477568,2673.2,2672.6,3.0]
[1730925286605,3.59477568,2673.2,2672.7,0.07482144]
[1730925286807,3.59477568,2673.2,2672.3,0.55]
[1730925286993,3.59477568,2673.2,2672.9,3.0]
[1730925287170,3.59477568,2673.2,2672.9,0.3]
[1730925287374,3.59477568,2673.2,2672.2,0.55]
[1730925288211,3.59477568,2673.2,2672.2,0.447]
[1730925288429,3.59477568,2673.2,2672.8,3.0]
[1730925288715,3.59477568,2673.2,2672.0,0.45206928]
[1730925289378,3.59477568,2673.2,2672.1,0.8109]
[1730925290109,3.59477568,2673.2,2672.2,0.7919]
[1730925290309,3.59477568,2673.2,2672.8,3.0]
[1730925290516,3.59477568,2673.2,2672.8,1.0919]
[1730925290813,3.59477568,2673.2,2672.8,0.7919]
[1730925291319,3.59477568,2672.9,2672.8,0.7919]
[1730925292043,3.59477568,2672.9,2672.5,0.8013]
[1730925292716,3.59477568,2673.2,2672.5,0.8013]
[1730925292923,3.59477568,2673.2,2672.6,0.07482172]
[1730925294302,3.59477568,2673.2,2672.7,3.55]
[1730925294533,3.59477568,2673.2,2672.8,0.36248217]
[1730925294842,3.59477568,2673.2,2672.6,0.55]
[1730925295641,3.98484326,2673.4,2672.7,3.07481743]
[1730925295946,3.22714326,2673.6,2673.4,0.7596]
[1730925296151,3.22714326,2674.0,2673.5,0.55]
[1730925296442,0.07482095,2674.1,2673.5,0.55]
[1730925296657,3.30196421,2674.1,2673.5,0.55]
[1730925297408,3.22714326,2674.0,2673.5,0.55]
[1730925298018,0.07482095,2673.9,2673.4,0.7596]
[1730925298339,0.40501737,2673.9,2673.4,0.7596]
[1730925298539,0.40501737,2673.9,2672.3,0.48411526]
[1730925298540,3.59477568,2673.5,2673.2,0.7544]
[1730925298838,3.30196421,2673.7,2673.2,0.7544]
[1730925299039,0.07482095,2673.7,2673.2,0.7544]
[1730925299239,3.22714326,2674.0,2673.2,0.7544]
[1730925299412,3.30196421,2674.1,2673.2,0.7544]
[1730925299613,3.22714326,2674.0,2673.2,0.7544]
[1730925299818,3.22714326,2674.0,2673.3,0.55]
[1730925300018,0.07482095,2674.2,2673.5,0.55]
[1730925300019,3.22714326,2674.1,2673.5,0.55]
[1730925300243,3.23197983,2674.1,2673.5,0.74025]
[1730925300624,0.07482095,2674.2,2673.6,3.7504]
[1730925300625,3.30680078,2674.2,2673.6,3.7504]
[1730925300947,3.30728023,2674.2,2673.6,3.82519588]
[1730925301243,3.23245928,2674.2,2673.7,0.43751959]
[1730925301446,6.90205591,2674.3,2673.7,0.7746]
[1730925301743,6.82723496,2674.3,2673.7,0.7746]
[1730925301952,0.07482095,2674.4,2673.7,0.7746]
[1730925301953,3.30728023,2674.4,2673.7,0.7746]
[1730925302759,0.07482095,2674.5,2674.1,0.833]
[1730925302956,3.23245928,2674.7,2674.2,0.62478398]
[1730925303268,3.23245928,2675.2,2674.7,1.3587]
[1730925303407,3.86413443,2675.5,2674.2,7.12161847]
[1730925303408,3.23245928,2675.5,2674.9,0.55]
[1730925303607,3.23245928,2675.6,2674.9,0.55]
[1730925303806,0.07482095,2675.5,2674.9,0.55]
[1730925304054,0.09482095,2675.7,2674.9,0.55]
[1730925304345,0.01,2675.5,2674.8,0.8087]
[1730925304554,0.49680897,2675.7,2674.8,0.8087]